fUST/lending_fUST_20240118
["ID","MTS","AMOUNT","RATE_DAILY","PERIOD"]
[311953926,1705515041793,-500.0,0.00022191,2]
[311953927,1705515041804,-500.0,0.00022191,2]
[311953928,1705515041814,-500.0,0.00022191,2]
[311953929,1705515041825,-373.15444107,0.00022191,2]
[311953930,1705515041835,-500.0,0.00022191,2]
[311953931,1705515041846,-500.0,0.00022191,2]
[311953932,1705515041858,-332.96932048,0.00022191,2]
[311953933,1705515041868,-500.0,0.00022191,2]
[311953934,1705515041878,-500.0,0.00022191,2]
[311953935,1705515041888,-419.76471444,0.00022191,2]
[311953936,1705515041897,-500.0,0.00022191,2]
[311953937,1705515041906,-390.37764602,0.00022191,2]
[311953938,1705515041916,-12302.52,0.00022191,2]
[311953939,1705515041927,-500.0,0.00022191,2]
[311953940,1705515041938,-500.0,0.00022191,2]
[311953941,1705515041948,-500.0,0.00022191,2]
[311953942,1705515041957,-261.51843576,0.00022191,2]
[311953943,1705515041968,-500.0,0.00022191,2]
[311953944,1705515041979,-500.0,0.00022191,2]
[311953945,1705515041989,-500.0,0.00022191,2]
[311953946,1705515041999,-2707.8,0.00022191,2]
[311953947,1705515042008,-1930.08,0.00022191,2]
[311953948,1705515042018,-500.0,0.00022191,2]
[311953949,1705515042028,-500.0,0.00022191,2]
[311953950,1705515042038,-644.95,0.00022191,2]
[311953951,1705515042047,-500.0,0.00022191,2]
[311953952,1705515042057,-500.0,0.00022191,2]
[311953953,1705515042066,-500.0,0.00022191,2]
[311953954,1705515042075,-500.0,0.00022191,2]
[311953955,1705515042084,-500.0,0.00022191,2]
[311953956,1705515042093,-1338.18,0.00022191,2]
[311953957,1705515042102,-500.0,0.00022191,2]
[311953958,1705515042112,-500.0,0.00022191,2]
[311953959,1705515042121,-500.0,0.00022191,2]
[311953960,1705515042129,-500.0,0.00022191,2]
[311953961,1705515042138,-282.50659396,0.00022191,2]
[311953962,1705515042147,-1000.0,0.00022191,2]
[311953963,1705515042156,-3290.29,0.00022191,2]
[311953965,1705515042166,-509.5,0.00022191,2]
[311953967,1705515042174,-500.0,0.00022191,2]
[311953969,1705515042184,-500.0,0.00022191,2]
[311953972,1705515042192,-500.0,0.00022191,2]
[311953973,1705515042202,-500.0,0.00022191,2]
[311953975,1705515042211,-510.11734616,0.00022191,2]
[311953977,1705515042220,-500.0,0.00022191,2]
[311953979,1705515042229,-500.0,0.00022191,2]
[311953981,1705515042238,-500.0,0.00022191,2]
[311953983,1705515042248,-500.0,0.00022191,2]
[311953984,1705515042257,-500.0,0.00022191,2]
[311953985,1705515042266,-500.0,0.00022191,2]
[311953986,1705515042275,-500.0,0.00022191,2]
[311953988,1705515042284,-500.0,0.00022191,2]
[311953990,1705515042293,-500.0,0.00022191,2]
[311953992,1705515042302,-500.0,0.00022191,2]
[311953995,1705515042311,-500.0,0.00022191,2]
[311953998,1705515042320,-500.0,0.00022191,2]
[311954001,1705515042329,-500.0,0.00022191,2]
[311954004,1705515042339,-500.0,0.00022191,2]
[311954007,1705515042348,-500.0,0.00022191,2]
[311954010,1705515042357,-500.0,0.00022191,2]
[311954011,1705515042366,-2689.02,0.00022191,2]
[311954014,1705515042375,-500.0,0.00022191,2]
[311954015,1705515042384,-500.0,0.00022191,2]
[311954018,1705515042394,-1614.46,0.00022191,2]
[311954020,1705515042403,-500.0,0.00022191,2]
[311954022,1705515042412,-500.0,0.00022191,2]
[311954024,1705515042422,-2111.9,0.00022191,2]
[311954027,1705515042431,-6253.4729554,0.00022221,2]
[311954028,1705515042441,-151.76085646,0.00022297,2]
[311954029,1705515042453,-500.0,0.00022325,2]
[311954030,1705515042463,-500.0,0.00022326,2]
[311954031,1705515042474,-725.03,0.00022326,2]
[311954032,1705515042486,-712.88,0.00022326,2]
[311954033,1705515042498,-500.0,0.00022327,2]
[311954034,1705515042509,-500.0,0.00022327,2]
[311954035,1705515042519,-500.0,0.00022328,2]
[311954036,1705515042530,-500.0,0.00022328,2]
[311954038,1705515042540,-500.0,0.00022328,2]
[311954040,1705515042550,-500.0,0.00022328,2]
[311954042,1705515042559,-500.0,0.00022328,2]
[311954043,1705515042568,-500.0,0.00022328,2]
[311954044,1705515042577,-600.04,0.00022328,2]
[311954045,1705515042587,-500.0,0.00022328,2]
[311954046,1705515042596,-500.0,0.00022328,2]
[311954047,1705515042607,-500.0,0.00022328,2]
[311954048,1705515042616,-500.0,0.00022328,2]
[311954049,1705515042625,-500.0,0.00022328,2]
[311954050,1705515042635,-177.12078323,0.00022328,2]
[311954051,1705515042645,-500.0,0.00022328,2]
[311954052,1705515042654,-615.40440601,0.00022328,2]
[311954053,1705515042663,-500.0,0.00022328,2]
[311954054,1705515042672,-500.0,0.00022328,2]
[311954055,1705515042682,-500.0,0.00022328,2]
[311954056,1705515042690,-500.0,0.00022328,2]
[311954058,1705515042699,-500.0,0.00022328,2]
[311954059,1705515042708,-500.0,0.00022328,2]
[311954060,1705515042717,-500.0,0.00022328,2]
[311954061,1705515042726,-500.0,0.00022328,2]
[311954062,1705515042736,-564.50422417,0.00022328,2]
[311954063,1705515042745,-500.0,0.00022328,2]
[311954064,1705515042754,-500.0,0.00022328,2]
[311954065,1705515042763,-500.0,0.00022328,2]
[311954066,1705515042772,-500.0,0.00022328,2]
[311954067,1705515042846,-12302.52,0.00022328,2]
[311954068,1705515042856,-500.0,0.00022328,2]
[311954069,1705515042866,-618.17282795,0.00022328,2]
[311954070,1705515042875,-500.0,0.00022328,2]
[311954071,1705515042884,-2707.8,0.00022328,2]
[311954072,1705515042893,-1930.08,0.00022328,2]
[311954073,1705515042902,-500.0,0.00022328,2]
[311954074,1705515042911,-500.0,0.00022328,2]
[311954075,1705515042920,-644.95,0.00022328,2]
[311954076,1705515042929,-500.0,0.00022328,2]
[311954078,1705515042938,-500.0,0.00022328,2]
[311954080,1705515042948,-500.0,0.00022328,2]
[311954082,1705515042958,-500.0,0.00022328,2]
[311954083,1705515042968,-1338.18,0.00022328,2]
[311954084,1705515042979,-500.0,0.00022328,2]
[311954085,1705515042989,-500.0,0.00022328,2]
[311954086,1705515042999,-1079.10068418,0.00022328,2]
[311954087,1705515043009,-3290.29,0.00022328,2]
[311954088,1705515043019,-509.5,0.00022328,2]
[311954089,1705515043029,-500.0,0.00022328,2]
[311954090,1705515043039,-500.0,0.00022328,2]
[311954091,1705515043049,-500.0,0.00022328,2]
[311954092,1705515043059,-500.0,0.00022328,2]
[311954093,1705515043068,-500.0,0.00022328,2]
[311954094,1705515043077,-500.0,0.00022328,2]
[311954095,1705515043085,-239.57751721,0.00022328,2]
[311954096,1705515043094,-500.0,0.00022328,2]
[311954097,1705515043103,-500.0,0.00022328,2]
[311954098,1705515043113,-500.0,0.00022328,2]
[311954099,1705515043122,-500.0,0.00022328,2]
[311954100,1705515043130,-500.0,0.00022328,2]
[311954101,1705515043140,-500.0,0.00022328,2]
[311954102,1705515043149,-500.0,0.00022328,2]
[311954103,1705515043158,-500.0,0.00022328,2]
[311954104,1705515043168,-500.0,0.00022328,2]
[311954105,1705515043176,-500.0,0.00022328,2]
[311954106,1705515043186,-2689.02,0.00022328,2]
[311954107,1705515043195,-500.0,0.00022328,2]
[311954108,1705515043204,-1614.46,0.00022328,2]
[311954109,1705515043213,-500.0,0.00022328,2]
[311954110,1705515043222,-500.0,0.00022328,2]
[311954111,1705515043232,-2111.9,0.00022328,2]
[311954112,1705515043241,-35704.57686873,0.00022363,2]
[311954113,1705515043250,-166.666666,0.00022431,2]
[311954114,1705515043260,-500.0,0.00022463,2]
[311954115,1705515043269,-725.03,0.00022463,2]
[311954116,1705515043278,-712.88,0.00022463,2]
[311954117,1705515043287,-500.0,0.00022464,2]
[311954118,1705515043296,-500.0,0.00022464,2]
[311954119,1705515043306,-407.40474853,0.00022464,2]
[311954120,1705515043315,-12101.51135863,0.00022465,2]
[311954121,1705515043324,-500.0,0.00022465,2]
[311954122,1705515043333,-500.0,0.00022465,2]
[311954123,1705515043342,-500.0,0.00022465,2]
[311954124,1705515043352,-500.0,0.00022465,2]
[311954125,1705515043361,-500.0,0.00022465,2]
[311954126,1705515043370,-500.0,0.00022465,2]
[311954127,1705515043379,-500.0,0.00022465,2]
[311954128,1705515043389,-500.0,0.00022465,2]
[311954129,1705515043399,-500.0,0.00022465,2]
[311954130,1705515043408,-500.0,0.00022465,2]
[311954131,1705515043417,-500.0,0.00022465,2]
[311954132,1705515043427,-500.0,0.00022465,2]
[311954133,1705515043437,-500.0,0.00022465,2]
[311954134,1705515043446,-500.0,0.00022465,2]
[311954135,1705515043456,-500.0,0.00022465,2]
[311954136,1705515043468,-500.0,0.00022465,2]
[311954137,1705515043477,-500.0,0.00022465,2]
[311954138,1705515043486,-12302.52,0.00022465,2]
[311954139,1705515043496,-500.0,0.00022465,2]
[311954140,1705515043505,-2707.8,0.00022465,2]
[311954141,1705515043515,-1930.08,0.00022465,2]
[311954142,1705515043524,-500.0,0.00022465,2]
[311954143,1705515043533,-500.0,0.00022465,2]
[311954144,1705515043544,-644.95,0.00022465,2]
[311954145,1705515043554,-500.0,0.00022465,2]
[311954146,1705515043563,-500.0,0.00022465,2]
[311954147,1705515043572,-500.0,0.00022465,2]
[311954148,1705515043582,-1338.18,0.00022465,2]
[311954149,1705515043591,-500.0,0.00022465,2]
[311954150,1705515043600,-500.0,0.00022465,2]
[311954151,1705515043609,-3290.29,0.00022465,2]
[311954152,1705515043619,-509.5,0.00022465,2]
[311954153,1705515043628,-630.78330674,0.00022465,2]
[311954154,1705515043637,-500.0,0.00022465,2]
[311954155,1705515043647,-500.0,0.00022465,2]
[311954156,1705515043656,-500.0,0.00022465,2]
[311954157,1705515043666,-500.0,0.00022465,2]
[311954158,1705515043674,-500.0,0.00022465,2]
[311954159,1705515043684,-500.0,0.00022465,2]
[311954160,1705515043693,-500.0,0.00022465,2]
[311954161,1705515043702,-500.0,0.00022465,2]
[311954162,1705515043711,-500.0,0.00022465,2]
[311954163,1705515043720,-500.0,0.00022465,2]
[311954164,1705515043729,-500.0,0.00022465,2]
[311954165,1705515043739,-2689.02,0.00022465,2]
[311954166,1705515043748,-491.09870363,0.00022465,2]
[311954167,1705515043757,-1614.46,0.00022465,2]
[311954168,1705515043768,-500.0,0.00022465,2]
[311954169,1705515043779,-2111.9,0.00022465,2]
[311954170,1705515043788,-151.76085646,0.00022536,2]
[311954171,1705515043797,-500.0,0.00022573,2]
[311954172,1705515043806,-500.0,0.000226,2]
[311954173,1705515043815,-725.03,0.000226,2]
[311954174,1705515043824,-712.88,0.000226,2]
[311954175,1705515043833,-500.0,0.00022601,2]
[311954176,1705515043842,-500.0,0.00022601,2]
[311954177,1705515043851,-500.0,0.00022602,2]
[311954178,1705515043860,-500.0,0.00022602,2]
[311954179,1705515043869,-500.0,0.00022602,2]
[311954180,1705515043878,-500.0,0.00022602,2]
[311954181,1705515043887,-500.0,0.00022602,2]
[311954182,1705515043897,-500.0,0.00022602,2]
[311954183,1705515043906,-500.0,0.00022602,2]
[311954184,1705515043915,-500.0,0.00022602,2]
[311954185,1705515043924,-500.0,0.00022602,2]
[311954186,1705515043934,-500.0,0.00022602,2]
[311954187,1705515043943,-500.0,0.00022602,2]
[311954188,1705515043952,-500.0,0.00022602,2]
[311954189,1705515043961,-500.0,0.00022602,2]
[311954190,1705515043970,-12302.52,0.00022602,2]
[311954191,1705515043979,-500.0,0.00022602,2]
[311954192,1705515043988,-2707.8,0.00022602,2]
[311954193,1705515043998,-1930.08,0.00022602,2]
[311954194,1705515044007,-500.0,0.00022602,2]
[311954195,1705515044016,-500.0,0.00022602,2]
[311954196,1705515044025,-644.95,0.00022602,2]
[311954197,1705515044034,-500.0,0.00022602,2]
[311954198,1705515044043,-494.09487652,0.00022602,2]
[311954199,1705515044052,-1338.18,0.00022602,2]
[311954200,1705515044061,-500.0,0.00022602,2]
[311954201,1705515044070,-500.0,0.00022602,2]
[311954202,1705515044079,-3290.29,0.00022602,2]
[311954203,1705515044089,-509.5,0.00022602,2]
[311954204,1705515044099,-500.0,0.00022602,2]
[311954205,1705515044108,-500.0,0.00022602,2]
[311954206,1705515044117,-500.0,0.00022602,2]
[311954207,1705515044127,-500.0,0.00022602,2]
[311954208,1705515044137,-500.0,0.00022602,2]
[311954209,1705515044146,-500.0,0.00022602,2]
[311954210,1705515044156,-500.0,0.00022602,2]
[311954211,1705515044165,-500.0,0.00022602,2]
[311954212,1705515044174,-500.0,0.00022602,2]
[311954213,1705515044184,-500.0,0.00022602,2]
[311954214,1705515044193,-500.0,0.00022602,2]
[311954215,1705515044203,-2689.02,0.00022602,2]
[311954216,1705515044212,-1614.46,0.00022602,2]
[311954217,1705515044221,-500.0,0.00022602,2]
[311954218,1705515044230,-2111.9,0.00022602,2]
[311954219,1705515044241,-945.61301093,0.00022608,2]
[311954220,1705515044250,-19254.6415031,0.00022615,2]
[311954221,1705515044259,-50000.0,0.00022628,2]
[311954222,1705515044268,-70996.08937091,0.00022628,2]
[311954223,1705515044278,-1235.9172659,0.00022634,2]
[311954224,1705515044287,-500.0,0.00022737,2]
[311954225,1705515044296,-725.03,0.00022737,2]
[311954226,1705515044305,-712.88,0.00022737,2]
[311954227,1705515044314,-500.0,0.00022738,2]
[311954228,1705515044387,-500.0,0.00022739,2]
[311954229,1705515044397,-500.0,0.00022739,2]
[311954230,1705515044406,-500.0,0.00022739,2]
[311954231,1705515044416,-177.5784829,0.00022739,2]
[311954232,1705515044425,-500.0,0.00022739,2]
[311954233,1705515044434,-500.0,0.00022739,2]
[311954234,1705515044443,-500.0,0.00022739,2]
[311954235,1705515044453,-500.0,0.00022739,2]
[311954236,1705515044467,-500.0,0.00022739,2]
[311954237,1705515044476,-500.0,0.00022739,2]
[311954238,1705515044485,-12302.52,0.00022739,2]
[311954239,1705515044495,-500.0,0.00022739,2]
[311954240,1705515044504,-2707.8,0.00022739,2]
[311954241,1705515044513,-1930.08,0.00022739,2]
[311954242,1705515044522,-500.0,0.00022739,2]
[311954243,1705515044531,-500.0,0.00022739,2]
[311954244,1705515044541,-644.95,0.00022739,2]
[311954245,1705515044550,-500.0,0.00022739,2]
[311954246,1705515044559,-1338.18,0.00022739,2]
[311954247,1705515044568,-500.0,0.00022739,2]
[311954248,1705515044577,-500.0,0.00022739,2]
[311954249,1705515044587,-3290.29,0.00022739,2]
[311954250,1705515044596,-509.5,0.00022739,2]
[311954251,1705515044606,-500.0,0.00022739,2]
[311954252,1705515044617,-500.0,0.00022739,2]
[311954253,1705515044627,-500.0,0.00022739,2]
[311954254,1705515044636,-500.0,0.00022739,2]
[311954255,1705515044645,-500.0,0.00022739,2]
[311954256,1705515044655,-500.0,0.00022739,2]
[311954257,1705515044664,-500.0,0.00022739,2]
[311954258,1705515044673,-500.0,0.00022739,2]
[311954259,1705515044682,-500.0,0.00022739,2]
[311954260,1705515044691,-500.0,0.00022739,2]
[311954261,1705515044701,-500.0,0.00022739,2]
[311954262,1705515044710,-2689.02,0.00022739,2]
[311954263,1705515044719,-1614.46,0.00022739,2]
[311954264,1705515044728,-500.0,0.00022739,2]
[311954265,1705515044737,-2111.9,0.00022739,2]
[311954266,1705515044746,-151.76085646,0.00022776,2]
[311954267,1705515044755,-500.0,0.00022873,2]
[311954268,1705515044765,-500.0,0.00022874,2]
[311954269,1705515044774,-725.03,0.00022874,2]
[311954270,1705515044784,-712.88,0.00022874,2]
[311954271,1705515044794,-500.0,0.00022875,2]
[311954272,1705515044804,-500.0,0.00022876,2]
[311954273,1705515044815,-500.0,0.00022876,2]
[311954274,1705515044824,-500.0,0.00022876,2]
[311954275,1705515044835,-500.0,0.00022876,2]
[311954276,1705515044845,-563.04,0.00022876,2]
[311954277,1705515044855,-500.0,0.00022876,2]
[311954278,1705515044865,-500.0,0.00022876,2]
[311954279,1705515044875,-500.0,0.00022876,2]
[311954280,1705515044884,-500.0,0.00022876,2]
[311954281,1705515044893,-12302.52,0.00022876,2]
[311954282,1705515044903,-500.0,0.00022876,2]
[311954283,1705515044914,-2707.8,0.00022876,2]
[311954284,1705515044924,-1930.08,0.00022876,2]
[311954285,1705515044934,-307.84833146,0.00022876,2]
[311954286,1705515044945,-500.0,0.00022876,2]
[311954287,1705515044955,-644.95,0.00022876,2]
[311954288,1705515044965,-500.0,0.00022876,2]
[311954289,1705515044974,-1338.18,0.00022876,2]
[311954290,1705515044983,-500.0,0.00022876,2]
[311954291,1705515044991,-500.0,0.00022876,2]
[311954292,1705515045001,-3290.29,0.00022876,2]
[311954293,1705515045010,-509.5,0.00022876,2]
[311954294,1705515045021,-500.0,0.00022876,2]
[311954295,1705515045030,-500.0,0.00022876,2]
[311954296,1705515045041,-500.0,0.00022876,2]
[311954297,1705515045052,-500.0,0.00022876,2]
[311954298,1705515045061,-500.0,0.00022876,2]
[311954299,1705515045072,-500.0,0.00022876,2]
[311954300,1705515045082,-500.0,0.00022876,2]
[311954301,1705515045092,-500.0,0.00022876,2]
[311954302,1705515045102,-500.0,0.00022876,2]
[311954303,1705515045114,-500.0,0.00022876,2]
[311954304,1705515045122,-2689.02,0.00022876,2]
[311954305,1705515045132,-1614.46,0.00022876,2]
[311954306,1705515045141,-500.0,0.00022876,2]
[311954307,1705515045152,-2111.9,0.00022876,2]
[311954308,1705515045161,-166.666666,0.00022944,2]
[311954309,1705515045170,-500.0,0.00023011,2]
[311954310,1705515045179,-725.03,0.00023011,2]
[311954312,1705515045188,-712.88,0.00023011,2]
[311954313,1705515045197,-500.0,0.00023012,2]
[311954315,1705515045207,-500.0,0.00023012,2]
[311954316,1705515045217,-500.0,0.00023013,2]
[311954317,1705515045226,-500.0,0.00023013,2]
[311954318,1705515045235,-500.0,0.00023013,2]
[311954320,1705515045245,-500.0,0.00023013,2]
[311954321,1705515045254,-500.0,0.00023013,2]
[311954322,1705515045263,-500.0,0.00023013,2]
[311954323,1705515045272,-500.0,0.00023013,2]
[311954324,1705515045282,-500.0,0.00023013,2]
[311954325,1705515045291,-12302.52,0.00023013,2]
[311954326,1705515045301,-500.0,0.00023013,2]
[311954327,1705515045310,-2707.8,0.00023013,2]
[311954328,1705515045319,-1930.08,0.00023013,2]
[311954329,1705515045329,-500.0,0.00023013,2]
[311954330,1705515045338,-644.95,0.00023013,2]
[311954332,1705515045348,-500.0,0.00023013,2]
[311954333,1705515045356,-1338.18,0.00023013,2]
[311954334,1705515045366,-500.0,0.00023013,2]
[311954335,1705515045375,-500.0,0.00023013,2]
[311954336,1705515045384,-3290.29,0.00023013,2]
[311954337,1705515045393,-509.5,0.00023013,2]
[311954338,1705515045402,-500.0,0.00023013,2]
[311954339,1705515045411,-539.93,0.00023013,2]
[311954340,1705515045420,-500.0,0.00023013,2]
[311954341,1705515045429,-500.0,0.00023013,2]
[311954342,1705515045437,-500.0,0.00023013,2]
[311954343,1705515045446,-500.0,0.00023013,2]
[311954344,1705515045458,-500.0,0.00023013,2]
[311954345,1705515045467,-500.0,0.00023013,2]
[311954347,1705515045476,-500.0,0.00023013,2]
[311954348,1705515045484,-2689.02,0.00023013,2]
[311954350,1705515045493,-1614.46,0.00023013,2]
[311954352,1705515045502,-500.0,0.00023013,2]
[311954355,1705515045510,-2111.9,0.00023013,2]
[311954357,1705515045519,-339.34,0.00023148,2]
[311954360,1705515045527,-725.03,0.00023148,2]
[311954362,1705515045536,-712.88,0.00023148,2]
[311954367,1705515045547,-500.0,0.00023149,2]
[311954371,1705515045556,-500.0,0.0002315,2]
[311954374,1705515045566,-500.0,0.0002315,2]
[311954377,1705515045575,-500.0,0.0002315,2]
[311954380,1705515045584,-500.0,0.0002315,2]
[311954382,1705515045593,-500.0,0.0002315,2]
[311954386,1705515045603,-500.0,0.0002315,2]
[311954390,1705515045612,-500.0,0.0002315,2]
[311954393,1705515045621,-531.62,0.0002315,2]
[311954396,1705515045630,-12302.52,0.0002315,2]
[311954399,1705515045639,-500.0,0.0002315,2]
[311954403,1705515045649,-2707.8,0.0002315,2]
[311954407,1705515045658,-1930.08,0.0002315,2]
[311954410,1705515045667,-500.0,0.0002315,2]
[311954413,1705515045677,-644.95,0.0002315,2]
[311954416,1705515045686,-500.0,0.0002315,2]
[311954419,1705515045695,-1338.18,0.0002315,2]
[311954422,1705515045704,-500.0,0.0002315,2]
[311954425,1705515045713,-500.0,0.0002315,2]
[311954429,1705515045723,-3290.29,0.0002315,2]
[311954431,1705515045732,-509.5,0.0002315,2]
[311954434,1705515045741,-500.0,0.0002315,2]
[311954437,1705515045750,-500.0,0.0002315,2]
[311954448,1705515045759,-500.0,0.0002315,2]
[311954450,1705515045829,-500.0,0.0002315,2]
[311954452,1705515045837,-500.0,0.0002315,2]
[311954454,1705515045846,-500.0,0.0002315,2]
[311954456,1705515045855,-500.0,0.0002315,2]
[311954457,1705515045865,-2689.02,0.0002315,2]
[311954459,1705515045875,-1614.46,0.0002315,2]
[311954461,1705515045883,-500.0,0.0002315,2]
[311954463,1705515045893,-2111.9,0.0002315,2]
[311954464,1705515045902,-725.03,0.00023285,2]
[311954465,1705515045912,-712.88,0.00023285,2]
[311954466,1705515045921,-155.56443103,0.00023286,2]
[311954467,1705515045930,-500.0,0.00023286,2]
[311954468,1705515045939,-500.0,0.00023286,2]
[311954470,1705515045949,-500.0,0.00023287,2]
[311954472,1705515045958,-351.98057545,0.00023287,2]
[311954474,1705515045967,-500.0,0.00023287,2]
[311954476,1705515045976,-500.0,0.00023287,2]
[311954477,1705515045985,-500.0,0.00023287,2]
[311954478,1705515045994,-500.0,0.00023287,2]
[311954479,1705515046003,-500.0,0.00023287,2]
[311954480,1705515046013,-12302.52,0.00023287,2]
[311954481,1705515046022,-2707.8,0.00023287,2]
[311954482,1705515046032,-1930.08,0.00023287,2]
[311954483,1705515046041,-500.0,0.00023287,2]
[311954484,1705515046050,-644.95,0.00023287,2]
[311954485,1705515046059,-500.0,0.00023287,2]
[311954486,1705515046068,-1338.18,0.00023287,2]
[311954487,1705515046078,-500.0,0.00023287,2]
[311954488,1705515046087,-500.0,0.00023287,2]
[311954489,1705515046096,-3290.29,0.00023287,2]
[311954490,1705515046105,-509.5,0.00023287,2]
[311954491,1705515046115,-500.0,0.00023287,2]
[311954492,1705515046124,-500.0,0.00023287,2]
[311954493,1705515046133,-500.0,0.00023287,2]
[311954494,1705515046143,-235.63871188,0.00023287,2]
[311954495,1705515046152,-572.52,0.00023287,2]
[311954496,1705515046162,-500.0,0.00023287,2]
[311954497,1705515046171,-157.78627968,0.00023287,2]
[311954498,1705515046182,-2689.02,0.00023287,2]
[311954499,1705515046191,-1614.46,0.00023287,2]
[311954500,1705515046201,-500.0,0.00023287,2]
[311954501,1705515046211,-2111.9,0.00023287,2]
[311954502,1705515046220,-638.80159812,0.00023288,2]
[311954503,1705515046230,-638.80159812,0.00023288,2]
[311954504,1705515046240,-638.80159812,0.00023288,2]
[311954505,1705515046249,-638.80159812,0.00023288,2]
[311954506,1705515046258,-638.80159812,0.00023288,2]
[311954507,1705515046267,-638.80159812,0.00023288,2]
[311954508,1705515046277,-638.80159812,0.00023288,2]
[311954509,1705515046286,-638.80159812,0.00023288,2]
[311954510,1705515046296,-423.38417427,0.00023288,2]
[311954511,1705515046305,-401.27195423,0.00023288,2]
[311954512,1705515046315,-500.0,0.00023288,2]
[311954513,1705515046324,-319.63338465,0.00023288,2]
[311954514,1705515046334,-532.80197924,0.00023288,2]
[311954515,1705515046343,-406.13133417,0.00023288,2]
[311954516,1705515046353,-453.17596052,0.00023288,2]
[311954517,1705515046363,-500.0,0.00023288,2]
[311954518,1705515046372,-224.55445825,0.00023288,2]
[311954519,1705515046382,-500.0,0.00023288,4]
[311954520,1705515046391,-377.93232635,0.00023288,4]
[311954521,1705515046401,-580.11932146,0.00023288,4]
[311954522,1705515046410,-500.0,0.00023288,4]
[311954523,1705515046419,-500.0,0.00023288,4]
[311954524,1705515046429,-500.0,0.00023288,4]
[311954525,1705515046438,-500.0,0.00023288,4]
[311954526,1705515046447,-500.0,0.00023288,4]
[311954527,1705515046457,-500.0,0.00023288,4]
[311954528,1705515046470,-500.0,0.00023288,4]
[311954529,1705515046479,-500.0,0.00023288,4]
[311954530,1705515046488,-500.0,0.00023288,4]
[311954531,1705515046498,-500.0,0.00023288,4]
[311954532,1705515046507,-500.0,0.00023288,4]
[311954533,1705515046517,-500.0,0.00023288,4]
[311954534,1705515046526,-500.0,0.00023288,4]
[311954535,1705515046536,-500.0,0.00023288,4]
[311954536,1705515046545,-500.0,0.00023288,4]
[311954537,1705515046555,-207.57102762,0.00023288,4]
[311954538,1705515046564,-500.0,0.00023288,4]
[311954539,1705515046573,-500.0,0.00023288,4]
[311954540,1705515046582,-500.0,0.00023288,4]
[311954541,1705515046591,-500.0,0.00023288,4]
[311954542,1705515046601,-500.0,0.00023288,4]
[311954543,1705515046610,-500.0,0.00023288,4]
[311954544,1705515046620,-500.0,0.00023288,4]
[311954545,1705515046630,-500.0,0.00023288,4]
[311954546,1705515046639,-500.0,0.00023288,4]
[311954547,1705515046648,-500.0,0.00023288,4]
[311954548,1705515046658,-562.56598553,0.00023288,4]
[311954549,1705515046667,-500.0,0.00023288,4]
[311954550,1705515046677,-500.0,0.00023288,4]
[311954551,1705515046686,-500.0,0.00023288,4]
[311954552,1705515046695,-500.0,0.00023288,4]